bitfinex-derivatives/quotes_SOLF0:USTF0_20250623
["timestamp","ask_amount","ask_price","bid_price","bid_amount"]
[1750665017776,5.88590004,134.4,134.37,7.4398]
[1750665017975,47.1663,134.41,134.37,7.4398]
[1750665017976,5.88590004,134.39,134.37,7.4398]
[1750665018280,39.7283,134.41,134.36,7.4402]
[1750665018678,7.4384,134.4,134.36,7.4402]
[1750665019076,7.4384,134.4,134.37,7.4398]
[1750665019584,47.166,134.41,134.34,37.26]
[1750665019786,44.6977,134.41,134.37,7.4395]
[1750665020485,7.4382,134.4,134.37,7.4395]
[1750665020685,7.4382,134.4,134.36,12.67925928]
[1750665024989,7.4384,134.4,134.35,5.23915928]
[1750665025184,37.26,134.41,134.35,5.23915928]
[1750665025388,5.90877153,134.4,134.37,7.4393]
[1750665025588,44.6979,134.41,134.37,7.4393]
[1750665025790,5.9088089,134.4,134.37,7.4393]
[1750665025988,37.26,134.41,134.37,7.4393]
[1750665026190,5.90893645,134.4,134.37,7.4393]
[1750665026384,37.26,134.41,134.37,7.4393]
[1750665026584,5.91077734,134.4,134.37,7.4393]
[1750665026785,37.26,134.41,134.37,7.4393]
[1750665026981,5.91077144,134.4,134.37,7.4393]
[1750665027186,37.26,134.41,134.37,7.4393]
[1750665027393,5.91426506,134.4,134.38,7.4392]
[1750665027688,37.26,134.41,134.38,7.4392]
[1750665027884,44.6978,134.41,134.38,7.4392]
[1750665028577,37.26,134.41,134.38,7.4392]
[1750665028782,37.26,134.41,134.39,7.4387]
[1750665029277,37.26,134.41,134.38,7.439]
[1750665029785,44.6976,134.41,134.38,7.439]
[1750665030287,5.9144712,134.4,134.38,7.439]
[1750665030488,44.6976,134.41,134.38,7.439]
[1750665030688,5.91327293,134.4,134.38,7.439]
[1750665030889,44.6976,134.41,134.38,7.439]
[1750665031092,5.91415648,134.4,134.38,7.439]
[1750665031291,44.6976,134.41,134.38,7.439]
[1750665031491,5.91543354,134.4,134.38,7.439]
[1750665031794,44.6976,134.41,134.38,7.439]
[1750665031992,5.91601043,134.4,134.38,7.439]
[1750665032294,44.6976,134.41,134.37,7.4396]
[1750665032594,5.91684668,134.4,134.37,7.4396]
[1750665032892,44.6976,134.41,134.37,7.4396]
[1750665033091,5.92554508,134.4,134.37,7.4396]
[1750665033290,44.6976,134.41,134.37,7.4396]
[1750665033489,5.92701653,134.4,134.37,7.4396]
[1750665033790,44.6976,134.41,134.37,7.4396]
[1750665033990,5.92705046,134.4,134.37,7.4396]
[1750665034196,44.6976,134.41,134.37,7.4396]
[1750665034490,5.92866578,134.4,134.37,7.4396]
[1750665034792,44.6976,134.41,134.37,7.4396]
[1750665034991,5.92868409,134.4,134.37,7.4396]
[1750665035189,44.6976,134.41,134.38,7.4392]
[1750665035389,5.93137139,134.4,134.38,7.4392]
[1750665035585,7.4382,134.4,134.35,5.23915928]
[1750665035791,7.4382,134.4,134.37,7.4395]
[1750665036301,10.78520499,134.4,134.37,10.78650499]
[1750665036587,3.34700499,134.38,134.32,37.24]
[1750665036794,3.34700499,134.37,134.34,3.34700499]
[1750665036984,3.34700499,134.37,134.32,37.24]
[1750665037184,10.78680499,134.37,134.32,37.24]
[1750665037385,3.34700499,134.37,134.33,3.34700499]
[1750665037589,10.78660499,134.38,134.35,7.4406]
[1750665038099,3.34700499,134.37,134.34,3.34700499]
[1750665038390,7.4396,134.38,134.34,7.4411]
[1750665039697,7.4399,134.37,134.34,7.4411]
[1750665044300,5.93571596,134.36,134.34,7.4411]
[1750665044597,7.4399,134.37,134.34,7.4411]
[1750665044798,5.93497463,134.36,134.34,7.4411]
[1750665045098,7.4399,134.37,134.34,7.4411]
[1750665045294,5.93235602,134.36,134.34,7.4411]
[1750665045498,7.4399,134.37,134.34,7.4411]
[1750665045699,5.93197744,134.36,134.34,7.4411]
[1750665045900,7.4399,134.37,134.34,7.4411]
[1750665046199,5.93191484,134.36,134.34,7.4411]
[1750665046399,7.4399,134.37,134.34,7.4411]
[1750665046595,5.93022552,134.36,134.34,7.4411]
[1750665046799,7.4399,134.37,134.34,7.4411]
[1750665047098,5.92997951,134.36,134.34,7.4411]
[1750665047297,7.4399,134.37,134.34,7.4411]
[1750665047501,5.9300017,134.36,134.34,7.4411]
[1750665047693,7.4399,134.37,134.34,7.4411]
[1750665047894,5.9294296,134.36,134.34,7.4411]
[1750665048094,7.4399,134.37,134.34,7.4411]
[1750665048294,5.9296122,134.36,134.34,7.4411]
[1750665048490,7.4395,134.38,134.34,7.4411]
[1750665048702,5.93000863,134.37,134.34,7.4411]
[1750665048893,5.93000863,134.36,134.34,7.4411]
[1750665049096,11.16238106,134.35,134.3,37.24]
[1750665049303,5.93036571,134.34,134.3,37.24]
[1750665049609,5.23201535,134.4,134.32,5.23201535]
[1750665049795,14.82958519,134.39,134.34,5.23201535]
[1750665050098,9.17263088,134.38,134.34,5.23201535]
[1750665050300,12.67041535,134.4,134.36,7.4403]
[1750665050498,9.1727143,134.39,134.36,7.4403]
[1750665050698,5.93039844,134.38,134.36,7.4403]
[1750665050897,12.67041535,134.4,134.36,7.4403]
[1750665051101,14.82868108,134.39,134.36,7.4403]
[1750665051402,5.92998213,134.38,134.36,7.4403]
[1750665051596,5.92998213,134.37,134.36,7.4403]
[1750665052902,12.67041535,134.4,134.36,7.4403]
[1750665053101,14.82910384,134.39,134.36,7.4403]
[1750665053302,5.9274259,134.38,134.36,7.4403]
[1750665053503,7.4387,134.39,134.36,7.4403]
[1750665053703,5.92766517,134.38,134.36,7.4403]
[1750665053904,5.92766517,134.37,134.36,7.4403]
[1750665054507,7.4387,134.39,134.36,7.4403]
[1750665054709,5.92998208,134.38,134.36,7.4403]
[1750665054907,7.4387,134.39,134.36,7.4403]
[1750665055208,5.93081473,134.38,134.36,7.4403]
[1750665055413,7.4387,134.39,134.36,7.4403]
[1750665055606,5.93088895,134.38,134.36,7.4403]
[1750665055909,7.4387,134.39,134.36,7.4403]
[1750665056109,5.93020073,134.38,134.36,7.4403]
[1750665056301,7.4387,134.39,134.36,7.4403]
[1750665056501,5.93024056,134.38,134.36,7.4403]
[1750665056701,5.93024056,134.37,134.36,7.4403]
[1750665057301,5.93024056,134.37,134.35,7.4406]
[1750665057509,5.93024056,134.36,134.35,7.4406]
[1750665060207,5.93024056,134.36,134.35,10.78844211]
[1750665062912,5.93024056,134.36,134.35,7.4406]
[1750665063211,5.93024056,134.36,134.34,10.78904211]
[1750665063413,5.93024056,134.36,134.33,37.22]
[1750665063414,5.93024056,134.35,134.33,40.56784211]
[1750665063611,3.34784211,134.36,134.33,40.56784211]
[1750665063612,5.93024056,134.34,134.33,40.56784211]
[1750665063911,5.93024056,134.34,134.33,48.00974211]
[1750665064307,5.93024056,134.34,134.33,37.22]
[1750665064709,5.93024056,134.34,134.32,7.4424]
[1750665064900,9.27808267,134.33,134.3,40.56784211]
[1750665065106,9.27808267,134.32,134.28,3.34784211]
[1750665065304,3.34784211,134.32,134.28,3.34784211]
[1750665065809,3.34784211,134.32,134.29,7.4439]
[1750665066305,10.79204211,134.3,134.23,2.4438]
[1750665066507,3.34784211,134.3,134.26,3.34784211]
[1750665066708,3.34784211,134.29,134.24,37.22]
[1750665066907,5.92146353,134.28,134.26,7.4456]
[1750665067112,3.34784211,134.29,134.26,7.4456]
[1750665067810,5.91706077,134.28,134.26,7.4456]
[1750665068112,10.79204211,134.29,134.26,7.4456]
[1750665068301,3.34784211,134.29,134.26,7.4456]
[1750665070211,12.68238872,134.3,134.26,7.4456]
[1750665071312,7.4443,134.29,134.25,7.4463]
[1750665071514,5.23838872,134.3,134.24,37.22]
[1750665071711,5.23838872,134.28,134.24,37.22]
[1750665072108,12.68358872,134.28,134.24,44.6667]
[1750665072313,5.23838872,134.28,134.24,44.6667]
[1750665072513,37.24,134.3,134.25,7.4464]
[1750665072715,11.11185163,134.29,134.24,37.22]
[1750665072913,5.23838872,134.29,134.24,37.22]
[1750665073805,12.68258872,134.29,134.26,7.4457]
[1750665077015,5.23838872,134.27,134.17,9.57388872]
[1750665077310,5.23838872,134.23,134.16,37.24]
[1750665077510,7.4485,134.22,134.18,7.45]
[1750665077910,5.23838872,134.23,134.18,7.45]
[1750665078819,7.4488,134.21,134.18,7.45]
[1750665083015,7.4483,134.22,134.18,7.45]
[1750665084310,12.68618872,134.23,134.19,7.4495]
[1750665084920,5.23838872,134.24,134.17,5.23838872]
[1750665085114,7.62918872,134.26,134.21,5.23838872]
[1750665085916,15.07508872,134.26,134.22,7.4477]
[1750665086216,7.62918872,134.26,134.21,5.23838872]
[1750665086419,7.62918872,134.26,134.23,7.4475]
[1750665086722,2.3908,134.26,134.23,7.4475]
[1750665087724,9.8367,134.26,134.23,7.4475]
[1750665088923,9.8367,134.26,134.22,7.4479]
[1750665089226,7.62918872,134.26,134.2,179.96]
[1750665089416,2.3908,134.26,134.2,185.19838872]
[1750665089817,7.4465,134.25,134.21,12.68688872]
[1750665090425,7.4465,134.25,134.21,5.23838872]
[1750665090919,2.3908,134.26,134.21,5.23838872]
[1750665091824,2.3908,134.26,134.23,7.4472]
[1750665092317,2.3559,134.27,134.23,7.4472]
[1750665093127,9.8014,134.27,134.23,7.4472]
[1750665094124,7.4455,134.27,134.24,7.4469]
[1750665094919,9.9473,134.28,134.24,7.4469]
[1750665095228,37.24,134.29,134.25,5.23838872]
[1750665095433,44.6843,134.29,134.25,5.23838872]
[1750665096825,44.6843,134.29,134.26,7.4456]
[1750665098028,44.6843,134.29,134.25,12.68458872]
[1750665099429,44.6843,134.29,134.26,7.4458]
[1750665100529,44.6843,134.29,134.25,12.68458872]
[1750665102833,44.6843,134.29,134.25,7.4462]
[1750665107838,37.24,134.29,134.24,5.23838872]
[1750665108029,4.8384,134.31,134.24,5.23838872]
[1750665108229,4.8384,134.31,134.26,5.23838872]
[1750665108430,12.2818,134.31,134.27,7.445]
[1750665109032,7.4438,134.3,134.27,7.445]
[1750665112540,12.2817,134.31,134.28,7.4447]
[1750665112741,5.84921035,134.3,134.25,5.23838872]
[1750665112933,4.8384,134.31,134.25,5.23838872]
[1750665113232,5.84921329,134.3,134.25,5.23838872]
[1750665113537,7.4437,134.3,134.27,7.445]
[1750665114742,12.2815,134.31,134.28,7.4446]
[1750665116543,12.2815,134.31,134.27,7.4451]
[1750665116742,13.29160544,134.3,134.27,7.4451]
[1750665116945,7.4438,134.3,134.27,7.4451]
[1750665118645,4.8384,134.31,134.26,7.4457]
[1750665118646,7.4443,134.29,134.26,7.4457]
[1750665120341,11.08872914,134.28,134.2,41.8596]
[1750665120540,8.13684042,134.27,134.21,5.23838872]
[1750665120735,7.4469,134.25,134.22,7.4478]
[1750665120941,5.23838872,134.26,134.2,37.24]
[1750665121343,7.4471,134.24,134.21,7.4483]
[1750665121643,10.03088872,134.26,134.2,37.24]
[1750665121844,13.29469224,134.25,134.22,7.448]
[1750665122146,7.4469,134.25,134.22,7.448]
[1750665122334,10.03088872,134.26,134.22,7.448]
[1750665122540,7.447,134.24,134.21,7.4486]
[1750665125152,7.447,134.24,134.2,44.689]
[1750665125353,7.4476,134.23,134.2,44.689]
[1750665126645,7.4472,134.24,134.21,7.4486]
[1750665127045,47.27088872,134.26,134.2,37.24]
[1750665127245,47.27088872,134.26,134.2,44.6888]
[1750665128146,7.4478,134.23,134.2,44.6888]
[1750665129150,7.4472,134.24,134.21,7.4487]
[1750665129751,7.4467,134.25,134.22,7.4481]
[1750665130656,37.24,134.29,134.23,5.23838872]
[1750665130853,44.92368872,134.31,134.25,5.23838872]
[1750665131951,7.444,134.3,134.27,7.445]
[1750665132355,44.92368872,134.31,134.25,5.23838872]
[1750665133067,7.444,134.3,134.27,7.4453]
[1750665133560,7.444,134.3,134.26,7.4456]
[1750665133869,7.444,134.3,134.25,5.23838872]
[1750665134062,47.1287,134.31,134.25,5.23838872]
[1750665134263,47.1287,134.31,134.27,5.23838872]
[1750665134860,47.1287,134.31,134.27,12.68338872]
[1750665136661,7.4439,134.3,134.26,7.4454]
[1750665137161,7.4443,134.29,134.26,7.4454]
[1750665137858,7.4451,134.28,134.24,7.4469]
[1750665138064,44.92368872,134.31,134.23,5.23838872]
[1750665138261,5.85979226,134.3,134.23,5.23838872]
[1750665138456,44.92368872,134.31,134.25,7.4461]
[1750665138457,13.30419226,134.29,134.25,7.4461]
[1750665138656,5.85979226,134.28,134.25,7.4461]
[1750665138859,7.4444,134.29,134.25,7.4461]
[1750665139863,5.86190787,134.28,134.25,7.4461]
[1750665140058,7.4444,134.29,134.25,7.4461]
[1750665140253,5.86259484,134.28,134.25,7.4461]
[1750665140462,7.4449,134.28,134.25,7.4461]
[1750665141464,39.6853,134.31,134.27,5.23838872]
[1750665141658,5.86378963,134.3,134.27,5.23838872]
[1750665141860,7.444,134.3,134.27,5.23838872]
[1750665142066,5.86356661,134.29,134.27,5.23838872]
[1750665142365,7.444,134.3,134.27,5.23838872]
[1750665142556,5.86345285,134.29,134.27,12.68368872]
[1750665142753,39.6853,134.31,134.27,5.23838872]
[1750665142956,5.85924343,134.3,134.27,5.23838872]
[1750665143165,39.6853,134.31,134.28,7.4444]
[1750665143362,5.85953057,134.3,134.28,7.4444]
[1750665143567,39.6853,134.31,134.28,7.4444]
[1750665143867,5.85902185,134.3,134.28,7.4444]
[1750665144056,39.6853,134.31,134.28,7.4444]
[1750665144251,5.85891946,134.3,134.28,7.4444]
[1750665144462,39.6853,134.31,134.28,7.4444]
[1750665144666,5.85833201,134.3,134.28,7.4444]
[1750665144971,47.1285,134.31,134.28,7.4444]
[1750665145161,5.85817466,134.3,134.29,7.4443]
[1750665145363,2.5033,134.32,134.29,7.4443]
[1750665145364,5.65501605,134.35,134.29,5.23838872]
[1750665145563,5.85808333,134.34,134.29,5.23838872]
[1750665145766,5.8580178,134.33,134.3,7.4436]
[1750665145969,7.4418,134.34,134.3,7.4436]
[1750665146167,5.85814394,134.33,134.3,7.4436]
[1750665146368,2.4378,134.35,134.29,5.23838872]
[1750665146569,2.4378,134.35,134.32,5.23838872]
[1750665147070,2.4378,134.35,134.32,12.68058872]
[1750665147465,2.4378,134.35,134.33,7.4419]
[1750665147665,7.4406,134.36,134.33,7.4419]
[1750665147866,5.87210254,134.35,134.33,7.4419]
[1750665148075,44.6601,134.37,134.33,7.4419]
[1750665148265,5.8724094,134.36,134.32,5.23838872]
[1750665148470,37.22,134.37,134.34,5.23838872]
[1750665148665,5.67469997,134.39,134.34,42.43838872]
[1750665148863,5.8699145,134.38,134.37,7.4398]
[1750665149063,2.3363,134.4,134.36,5.23838872]
[1750665149269,5.87064047,134.39,134.36,5.23838872]
[1750665149472,9.7748,134.4,134.36,12.67838872]
[1750665149659,2.3363,134.4,134.35,5.23838872]
[1750665149863,5.86607776,134.39,134.35,5.23838872]
[1750665150066,9.7749,134.4,134.36,7.4403]
[1750665152672,7.4389,134.39,134.36,7.4403]
[1750665152874,7.4389,134.39,134.35,12.67908872]
[1750665153768,2.3363,134.4,134.35,12.67908872]
[1750665153769,7.4393,134.38,134.35,12.67908872]
[1750665157277,7.4393,134.38,134.35,7.4407]
[1750665157673,7.57468872,134.4,134.34,49.87968872]
[1750665157875,13.45008345,134.4,134.34,44.6413]
[1750665160079,7.57468872,134.4,134.34,44.6413]
[1750665160583,7.4399,134.37,134.34,44.6413]
[1750665161178,7.4395,134.38,134.35,7.4408]
[1750665163582,7.4399,134.37,134.34,44.6413]
[1750665164380,7.4395,134.38,134.35,7.4409]
[1750665165279,7.439,134.39,134.36,7.4403]
[1750665167788,7.439,134.39,134.35,12.67908872]
[1750665168087,7.4394,134.38,134.35,12.67908872]
[1750665169182,2.3363,134.4,134.34,37.2]
[1750665169183,5.23838872,134.39,134.34,37.2]
[1750665170492,5.23838872,134.39,134.33,5.23838872]
[1750665170787,7.4412,134.35,134.31,42.41838872]
[1750665170986,5.23838872,134.37,134.31,42.41838872]
[1750665172690,7.4414,134.35,134.31,49.86118872]
[1750665173989,7.4415,134.34,134.31,49.86118872]
[1750665174991,7.4411,134.35,134.31,49.86118872]
[1750665178191,7.4407,134.36,134.32,7.4426]
[1750665180492,5.23838872,134.37,134.33,7.4419]
[1750665180493,7.4401,134.37,134.33,7.4419]
[1750665183296,47.834193,134.38,134.34,7.441]
[1750665183496,5.87443616,134.37,134.34,7.441]
[1750665183692,37.18,134.38,134.33,5.23838872]
[1750665183891,37.18,134.38,134.34,7.4412]
[1750665184091,37.18,134.38,134.33,5.23838872]
[1750665184492,37.18,134.38,134.34,7.4412]
[1750665184694,44.6193,134.38,134.34,7.4412]
[1750665185398,5.87989539,134.37,134.34,7.4412]
[1750665185591,44.6193,134.38,134.34,7.4412]
[1750665185786,5.88003203,134.37,134.34,7.4412]
[1750665185990,44.6193,134.38,134.34,7.4412]
[1750665186198,5.88007956,134.37,134.34,7.4412]
[1750665186392,44.6193,134.38,134.34,7.4412]
[1750665186594,5.88494101,134.37,134.34,7.4412]
[1750665186795,44.6193,134.38,134.34,7.4412]
[1750665186996,5.88462813,134.37,134.34,7.4412]
[1750665187301,5.90127325,134.36,134.34,7.4412]
[1750665187598,44.6193,134.38,134.34,7.4412]
[1750665187799,5.90068912,134.37,134.34,7.4412]
[1750665188099,44.6193,134.38,134.34,7.4412]
[1750665188291,9.13292556,134.37,134.34,7.4412]
[1750665188486,5.90108746,134.36,134.35,7.4409]
[1750665188691,37.18,134.38,134.35,7.4409]
[1750665188992,5.90368439,134.37,134.35,7.4409]
[1750665189188,37.18,134.38,134.35,7.4409]
[1750665189499,5.90367758,134.37,134.35,7.4409]
[1750665189699,5.90367758,134.36,134.34,7.4412]
[1750665189999,44.6193,134.38,134.34,7.4412]
[1750665190197,5.90690689,134.37,134.34,7.4412]
[1750665190393,5.90690689,134.36,134.34,7.4412]
[1750665190588,44.6193,134.38,134.34,7.4412]
[1750665190793,14.80794438,134.37,134.34,7.4412]
[1750665190997,5.90858909,134.36,134.34,7.4412]
[1750665191296,44.6193,134.38,134.34,7.4412]
[1750665191497,14.81167183,134.37,134.34,7.4412]
[1750665191693,5.91015543,134.36,134.34,7.4412]
[1750665191893,44.6193,134.38,134.34,7.4412]
[1750665192200,14.81171924,134.37,134.34,7.4412]
[1750665192399,5.91011583,134.36,134.34,7.4412]
[1750665192599,5.91011583,134.35,134.34,7.4412]
[1750665197505,5.91011583,134.35,134.33,12.68018872]
[1750665197706,7.4399,134.37,134.33,7.4418]
[1750665197905,9.14642525,134.36,134.33,7.4418]
[1750665198203,5.91094531,134.35,134.33,7.4418]
[1750665198403,7.4399,134.37,134.33,7.4418]
[1750665198606,14.81337945,134.36,134.33,7.4418]
[1750665198906,5.91131697,134.35,134.33,7.4418]
[1750665199099,7.4399,134.37,134.33,7.4418]
[1750665199302,9.14662798,134.36,134.33,7.4418]
[1750665199500,7.4399,134.37,134.33,7.4418]
[1750665199501,5.91131697,134.35,134.33,7.4418]
[1750665199703,7.4399,134.37,134.33,7.4418]
[1750665199902,5.9114395,134.36,134.33,7.4418]
[1750665200208,5.9114395,134.35,134.33,7.4418]
[1750665200410,44.6195,134.38,134.33,7.4418]
[1750665200614,14.80016807,134.37,134.33,7.4418]
[1750665200909,9.14746105,134.36,134.33,7.4418]
[1750665201101,5.91192291,134.35,134.33,7.4418]
[1750665201303,44.6195,134.38,134.34,7.4415]
[1750665201503,14.79459728,134.37,134.34,7.4415]
[1750665201706,5.91025771,134.36,134.35,7.4409]
[1750665202909,37.18,134.38,134.36,7.4403]
[1750665203100,5.90879004,134.37,134.36,7.4403]
[1750665203302,5.90879004,134.37,134.35,5.23276193]
[1750665203599,5.90879004,134.36,134.32,4.8595]
[1750665203803,5.90260751,134.35,134.32,7.72874977]
[1750665204005,11.57798677,134.39,134.32,7.72874977]
[1750665204201,22.22227357,134.38,134.34,7.4411]
[1750665204402,14.78287357,134.37,134.34,7.4411]
[1750665204610,5.90259887,134.36,134.34,7.4411]
[1750665204810,5.90259887,134.35,134.34,7.4411]
[1750665206716,5.90259887,134.35,134.33,7.4418]
[1750665206913,7.4393,134.38,134.33,7.4418]
[1750665207214,14.78776882,134.37,134.33,7.4418]
[1750665207406,5.90414379,134.36,134.33,7.4418]
[1750665207606,5.90414379,134.35,134.33,7.4418]
[1750665207810,7.4393,134.38,134.33,7.4418]
[1750665208012,14.79043375,134.37,134.33,7.4418]
[1750665208216,5.90514352,134.36,134.34,7.4414]
[1750665208412,5.90514352,134.35,134.34,7.4414]
[1750665210221,5.90514352,134.35,134.34,10.790101]
[1750665210421,5.90514352,134.35,134.34,3.348701]
[1750665213722,5.90514352,134.35,134.34,10.790201]
[1750665215126,5.90514352,134.35,134.34,7.4415]
[1750665215423,5.90514352,134.35,134.34,10.790201]
[1750665217526,5.90514352,134.35,134.34,3.348701]
[1750665218930,5.90514352,134.35,134.34,10.790201]
[1750665226036,5.90514352,134.35,134.34,7.4415]
[1750665226339,9.14110295,134.35,134.33,10.790701]
[1750665226537,5.90514352,134.34,134.32,3.348701]
[1750665226732,3.348701,134.36,134.32,10.791101]
[1750665226935,9.15401873,134.35,134.33,3.348701]
[1750665227136,5.91807991,134.34,134.33,3.348701]
[1750665227639,5.91807991,134.34,134.33,3.34926618]
[1750665229342,5.91807991,134.34,134.32,10.79166618]
[1750665229538,10.78986618,134.36,134.32,10.79166618]
[1750665229733,9.15325112,134.35,134.32,10.79166618]
[1750665229934,5.91744945,134.34,134.32,10.79166618]
[1750665230229,10.78986618,134.36,134.32,10.79166618]
[1750665230433,9.15314506,134.35,134.32,10.79166618]
[1750665230635,5.9171598,134.34,134.32,10.79166618]
[1750665230941,10.78986618,134.36,134.32,10.79166618]
[1750665231143,9.15194043,134.35,134.32,10.79166618]
[1750665231334,5.9162041,134.34,134.32,10.79166618]
[1750665231534,10.78986618,134.36,134.32,10.79166618]
[1750665231738,9.15157115,134.35,134.32,10.79166618]
[1750665231937,5.91583617,134.34,134.32,10.79166618]
[1750665232137,47.96986618,134.36,134.32,10.79166618]
[1750665232338,9.15156222,134.35,134.32,10.79166618]
[1750665232539,5.91584879,134.34,134.33,7.4421]
[1750665234544,5.91584879,134.34,134.33,10.79136618]
[1750665236649,5.91584879,134.34,134.33,3.34926618]
[1750665236948,5.91584879,134.34,134.32,10.79166618]
[1750665237141,7.441,134.35,134.32,10.79166618]
[1750665237343,5.90972727,134.34,134.32,10.79166618]
[1750665237543,7.441,134.35,134.32,10.79166618]
[1750665237745,5.90965716,134.34,134.32,10.79166618]
[1750665238046,5.9045275,134.33,134.31,10.79236618]
[1750665238250,9.9531,134.34,134.31,10.79236618]
[1750665238543,5.90371161,134.33,134.31,10.79236618]
[1750665238747,9.9531,134.34,134.31,10.79236618]
[1750665238948,5.90364754,134.33,134.31,7.4431]
[1750665239246,5.90374677,134.32,134.3,10.79276618]
[1750665239450,5.90219477,134.31,134.29,3.34926618]
[1750665239647,3.34926618,134.32,134.28,3.34926618]
[1750665239848,5.90216622,134.31,134.28,10.79396618]
[1750665240152,7.443,134.32,134.28,3.34926618]
[1750665240343,5.90208914,134.31,134.29,3.34926618]
[1750665240545,40.50926618,134.33,134.29,3.34926618]
[1750665240746,5.90239527,134.32,134.29,3.34926618]
[1750665240946,40.50926618,134.33,134.29,3.34926618]
[1750665241146,5.90226835,134.32,134.29,3.34926618]
[1750665241343,40.50926618,134.33,134.29,3.34926618]
[1750665241543,5.90108198,134.32,134.29,3.34926618]
[1750665241749,40.50926618,134.33,134.3,7.4435]
[1750665241949,5.89936236,134.32,134.3,7.4435]
[1750665242150,40.50926618,134.33,134.3,7.4435]
[1750665242352,5.8864534,134.32,134.3,10.79276618]
[1750665242548,40.50926618,134.33,134.3,10.79276618]
[1750665242749,5.88505387,134.32,134.3,10.79276618]
[1750665242950,40.50926618,134.33,134.3,10.79276618]
[1750665243154,5.88460693,134.32,134.3,10.79276618]
[1750665243360,40.50926618,134.33,134.3,10.79276618]
[1750665243657,5.8832475,134.32,134.3,10.79276618]
[1750665243848,37.16,134.33,134.3,10.79276618]
[1750665244050,5.88334957,134.32,134.3,10.79276618]
[1750665244351,37.16,134.33,134.3,10.79276618]
[1750665244550,5.8838443,134.32,134.3,10.79276618]
[1750665244751,37.16,134.33,134.3,10.79276618]
[1750665244951,5.88388809,134.32,134.3,10.79276618]
[1750665245151,40.50926618,134.33,134.3,7.4435]
[1750665245347,5.88392919,134.32,134.3,7.4435]
[1750665245656,40.50926618,134.33,134.3,7.4435]
[1750665245861,5.90576867,134.32,134.3,7.4435]
[1750665246158,40.50926618,134.33,134.3,7.4435]
[1750665246360,5.90568947,134.32,134.3,7.4435]
[1750665246662,40.50926618,134.33,134.3,7.4435]
[1750665246963,5.90367109,134.32,134.3,7.4435]
[1750665247154,40.50926618,134.33,134.3,7.4435]
[1750665247356,5.90819368,134.32,134.3,7.4435]
[1750665247653,40.50926618,134.33,134.3,7.4435]
[1750665247862,5.90797234,134.32,134.3,7.4435]
[1750665248064,3.34926618,134.33,134.3,7.4435]
[1750665248360,5.9079677,134.32,134.3,7.4435]
[1750665248557,3.34926618,134.33,134.3,7.4435]
[1750665248762,5.90784473,134.32,134.3,7.4435]
[1750665248959,3.34926618,134.33,134.3,7.4435]
[1750665249262,5.90784194,134.32,134.3,7.4435]
[1750665249462,3.34926618,134.33,134.3,7.4435]
[1750665249664,5.90717933,134.32,134.3,7.4435]
[1750665249851,3.34926618,134.33,134.3,7.4435]
[1750665250055,5.90717933,134.32,134.3,7.4435]
[1750665250359,3.34926618,134.33,134.3,7.4435]
[1750665250560,5.90660842,134.32,134.3,7.4435]
[1750665250758,10.79156618,134.33,134.3,7.4435]
[1750665250959,5.90608201,134.32,134.3,7.4435]
[1750665251159,10.79156618,134.33,134.3,7.4435]
[1750665251364,5.90608201,134.32,134.3,7.4435]
[1750665251665,10.79156618,134.33,134.3,7.4435]
[1750665251864,10.79156618,134.33,134.29,3.34926618]
[1750665251865,5.90553592,134.32,134.31,7.4433]
[1750665252775,3.34926618,134.33,134.32,7.4428]
[1750665252963,5.90568688,134.33,134.32,10.79206618]
[1750665253559,40.50926618,134.36,134.33,7.4421]
[1750665253765,9.13100859,134.35,134.33,7.4421]
[1750665253960,5.90648027,134.34,134.33,7.4421]
[1750665254368,5.90648027,134.34,134.32,10.79196618]
[1750665254670,47.95006618,134.36,134.32,3.34926618]
[1750665254875,9.1283079,134.35,134.32,3.34926618]
[1750665255166,5.9044921,134.34,134.33,7.4419]
[1750665255367,5.9044921,134.34,134.32,3.34926618]
[1750665255671,3.34926618,134.35,134.32,10.79176618]
[1750665255870,5.90727768,134.34,134.32,10.79176618]
[1750665256071,3.34926618,134.35,134.32,10.79176618]
[1750665256265,5.90768772,134.34,134.32,10.79176618]